[Event "XTX Markets London Masters 2024"]
[Site "London"]
[Date "2024.11.29"]
[Round "1.35"]
[White "Richardson, John R"]
[Black "Cancedda-Dupuis, Livio"]
[Result "1/2-1/2"]
[ECO "A23"]
[WhiteElo "2287"]
[BlackElo "2039"]
[Annotator "RC"]
[PlyCount "107"]
[EventDate "2024.11.28"]
[EventType "swiss"]
[EventCountry "ENG"]
[SourceTitle "playchess.com"]
[Source "ChessBase"]
[SourceQuality "1"]
[TimeControl "40/5400+30:1800+30"]

1. c4 {[%emt 0:00:01]} e5 {[%emt 0:00:19]} 2. g3 {[%emt 0:00:05]} Nf6 {[%emt 0:00:18]} 3. Bg2 {[%emt 0:00:04]} Bc5 {[%emt 0:02:27]} 4. Nc3 {[%emt 0:00:26]} c6 {[%emt 0:00:24]} 5. e4 {[%emt 0:10:22]} d6 {[%emt 0:01:20]} 6. Nge2 {[%emt 0:04:27]} Be6 {[%emt 0:03:10]} 7. d3 {[%emt 0:09:59]} O-O {[%emt 0:02:32]} 8. O-O {[%emt 0:00:39]} Nbd7 {[%emt 0:03:44]} 9. b3 {[%emt 0:04:26]} Re8 {[%emt 0:14:02]} 10. d4 {[%emt 0:00:24]} exd4 {[%emt 0:00:08]} 11. Nxd4 {[%emt 0:00:01]} Bg4 {[%emt 0:00:16]} 12. Qd2 {[%emt 0:06:28]} Ne5 {[%emt 0:07:05]} 13. Bb2 {[%emt 0:05:08]} Bxd4 {[%emt 0:13:36]} 14. Qxd4 {[%emt 0:00:02]} Nf3+ {[%emt 0:00:11]} 15. Bxf3 {[%emt 0:00:01]} Bxf3 {[%emt 0:00:09]} 16. Rfe1 {[%emt 0:04:01]} Ng4 {[%emt 0:09:09]} 17. Nb1 {[%emt 0:11:11]} Ne5 {[%emt 0:03:09]} 18. Nd2 {[%emt 0:00:03]} f6 {[%emt 0:09:06]} 19. Re3 {[%emt 0:09:25]} Bg4 {[%emt 0:01:08]} 20. f4 {[%emt 0:05:50]} Nf7 {[%emt 0:00:27]} 21. Rae1 {[%emt 0:03:18]} Qa5 {[%emt 0:01:14]} 22. f5 {[%emt 0:03:47]} Ne5 {[%emt 0:01:00]} 23. a3 {[%emt 0:01:15]} Bh5 {[%emt 0:00:53]} 24. b4 {[%emt 0:00:29]} Qc7 {[%emt 0:00:17]} 25. Rc1 {[%emt 0:03:45]} b6 {[%emt 0:00:33]} 26. Kg2 {[%emt 0:01:49]} c5 {[%emt 0:00:57]} 27. Qc3 {[%emt 0:00:40]} Bf7 {[%emt 0:02:15]} 28. b5 {[%emt 0:02:29]} a6 {[%emt 0:00:15]} 29. bxa6 {[%emt 0:06:48]} Rxa6 {[%emt 0:00:09]} 30. Qc2 {[%emt 0:00:09]} Qb7 {[%emt 0:01:47]} 31. Bxe5 {[%emt 0:01:02]} Rxe5 {[%emt 0:00:20]} 32. Nf3 {[%emt 0:00:33]} Re8 {[%emt 0:00:10]} 33. Qd3 {[%emt 0:02:35]} h6 {[%emt 0:01:46]} 34. g4 {[%emt 0:01:33]} Rea8 {[%emt 0:01:00]} 35. Rc3 {[%emt 0:01:01]} b5 {[%emt 0:03:22]} 36. cxb5 {[%emt 0:00:32]} Rb6 {[%emt 0:00:06]} 37. h4 {[%emt 0:00:56]} c4 {[%emt 0:00:56]} 38. Qd4 {[%emt 0:02:39]} Rxb5 {[%emt 0:00:07]} 39. g5 {[%emt 0:00:03]} hxg5 {[%emt 0:04:10]} 40. hxg5 {[%emt 0:00:00]} fxg5 {[%emt 0:00:32]} 41. Kg3 {[%emt 0:10:01]} Qe7 {[%emt 0:02:52]} 42. Rxc4 {[%emt 0:04:17]} d5 {[%emt 0:00:25]} 43. exd5 {[%emt 0:00:17]} Qd6+ {[%emt 0:00:07]} 44. Qe5 {[%emt 0:01:20]} Qxd5 {[%emt 0:02:24]} 45. Rb4 {[%emt 0:02:42]} Qxe5+ {[%emt 0:03:03]} 46. Nxe5 {[%emt 0:00:01]} Rba5 {[%emt 0:01:08]} 47. Nxf7 {[%emt 0:09:42]} Rxa3 {[%emt 0:00:49]} 48. Rxa3 {[%emt 0:03:00]} Rxa3+ {[%emt 0:00:08]} 49. Kg4 {[%emt 0:00:01]} Kxf7 {[%emt 0:00:10]} 50. Rb7+ {[%emt 0:01:15]} Kf6 {[%emt 0:00:07]} 51. Rb6+ {[%emt 0:00:04]} Kf7 {[%emt 0:00:06]} 52. Kxg5 {[%emt 0:00:16]} Rg3+ {[%emt 0:00:07]} 53. Kf4 {[%emt 0:00:05]} Rg1 {[%emt 0:00:05]} 54. Rb7+ {[%emt 0:00:22]} 1/2-1/2

[Event "XTX Markets London Masters 2024"]
[Site "London"]
[Date "2024.11.29"]
[Round "1.36"]
[White "Dasgupta, Avyukt"]
[Black "Yoon, Jacob D"]
[Result "1/2-1/2"]
[ECO "D02"]
[WhiteElo "2034"]
[BlackElo "2270"]
[Annotator "RC"]
[PlyCount "102"]
[EventDate "2024.11.28"]
[EventType "swiss"]
[EventCountry "ENG"]
[SourceTitle "playchess.com"]
[Source "ChessBase"]
[SourceQuality "1"]
[TimeControl "40/5400+30:1800+30"]

1. e4 {[%emt 0:00:03]} e6 {[%emt 0:00:14]} 2. d4 {[%emt 0:00:07]} d5 {[%emt 0:00:04]} 3. exd5 {[%emt 0:00:15]} exd5 {[%emt 0:00:05]} 4. Nf3 {[%emt 0:00:11]} c5 {[%emt 0:02:06]} 5. dxc5 {[%emt 0:04:30]} Bxc5 {[%emt 0:02:33]} 6. Nc3 {[%emt 0:03:20]} Be6 {[%emt 0:04:47]} 7. Bb5+ {[%emt 0:04:22]} Nc6 {[%emt 0:01:45]} 8. O-O {[%emt 0:09:43]} Nge7 {[%emt 0:07:47]} 9. Nd4 {[%emt 0:12:49]} O-O {[%emt 0:05:52]} 10. Be3 {[%emt 0:00:21]} Bd6 {[%emt 0:01:35]} 11. Bd3 {[%emt 0:09:09]} a6 {[%emt 0:14:21]} 12. Nce2 {[%emt 0:04:30]} Qc7 {[%emt 0:05:38]} 13. h3 {[%emt 0:02:28]} Qd7 {[%emt 0:00:04]} 14. f4 {[%emt 0:07:24]} Nf5 {[%emt 0:10:50]} 15. Bf2 {[%emt 0:15:31]} Nfxd4 {[%emt 0:11:16]} 16. Bxd4 {[%emt 0:00:21]} Bf5 {[%emt 0:02:29]} 17. c3 {[%emt 0:04:11]} Be4 {[%emt 0:02:24]} 18. Bxe4 {[%emt 0:05:42]} dxe4 {[%emt 0:00:19]} 19. f5 {[%emt 0:00:06]} Nxd4 {[%emt 0:02:06]} 20. Qxd4 {[%emt 0:01:36]} Qc6 {[%emt 0:00:51]} 21. Kh1 {[%emt 0:01:20]} Bc5 {[%emt 0:00:04]} 22. Qe5 {[%emt 0:00:47]} Rfe8 {[%emt 0:00:06]} 23. Qf4 {[%emt 0:01:36]} Qb5 {[%emt 0:03:03]} 24. Qg4 {[%emt 0:01:16]} Qxb2 {[%emt 0:02:12]} 25. Ng3 {[%emt 0:02:33]} Qxc3 {[%emt 0:11:23]} 26. Nxe4 {[%emt 0:01:27]} Qd4 {[%emt 0:00:01]} 27. Nxc5 {[%emt 0:00:50]} Qxc5 {[%emt 0:00:01]} 28. f6 {[%emt 0:00:15]} g6 {[%emt 0:00:31]} 29. Rac1 {[%emt 0:00:21]} Qd5 {[%emt 0:06:38]} 30. Rcd1 {[%emt 0:04:39]} Qxa2 {[%emt 0:02:00]} 31. Qf4 {[%emt 0:00:19]} Qa3 {[%emt 0:00:32]} 32. Rd7 {[%emt 0:01:05]} Qe3 {[%emt 0:01:58]} 33. Qc7 {[%emt 0:02:39]} Qb3 {[%emt 0:00:01]} 34. Rf3 {[%emt 0:00:39]} Re1+ {[%emt 0:01:18]} 35. Kh2 {[%emt 0:00:03]} Qe6 {[%emt 0:00:04]} 36. Re7 {[%emt 0:00:20]} Qxe7 {[%emt 0:00:59]} 37. fxe7 {[%emt 0:00:06]} Re8 {[%emt 0:00:01]} 38. Qxb7 {[%emt 0:01:01]} R8xe7 {[%emt 0:00:46]} 39. Qxa6 {[%emt 0:00:20]} h5 {[%emt 0:00:24]} 40. Qc8+ {[%emt 0:00:45]} Re8 {[%emt 0:00:17]} 41. Qc3 {[%emt 0:30:21]} R1e6 {[%emt 0:30:44]} 42. Qd2 {[%emt 0:00:28]} R8e7 {[%emt 0:00:00]} 43. Kg3 {[%emt 0:00:00]} Re4 {[%emt 0:00:00]} 44. Qd5 {[%emt 0:00:00]} R4e6 {[%emt 0:00:00]} 45. Kf4 {[%emt 0:00:00]} h4 {[%emt 0:00:00]} 46. Kg4 {[%emt 0:00:00]} Re4+ {[%emt 0:00:00]} 47. Rf4 {[%emt 0:00:00]} R4e5 {[%emt 0:00:00]} 48. Qd8+ {[%emt 0:00:00]} Kg7 {[%emt 0:00:00]} 49. Qd4 {[%emt 0:00:00]} f6 {[%emt 0:00:00]} 50. Qd6 {[%emt 0:00:00]} R5e6 {[%emt 0:00:00]} 51. Qd4 {[%emt 0:01:09]} Re5 {[%emt 0:00:00]} 1/2-1/2

[Event "XTX Markets London Masters 2024"]
[Site "London"]
[Date "2024.11.29"]
[Round "1.38"]
[White "Goh, Jinghan Cameron"]
[Black "Radovanovic, Jovica"]
[Result "1-0"]
[ECO "E68"]
[WhiteElo "2017"]
[BlackElo "2248"]
[Annotator "RC"]
[PlyCount "115"]
[EventDate "2024.11.28"]
[EventType "swiss"]
[EventCountry "ENG"]
[SourceTitle "playchess.com"]
[Source "ChessBase"]
[SourceQuality "1"]
[TimeControl "40/5400+30:1800+30"]

1. d4 {[%emt 0:00:05]} Nf6 {[%emt 1:31:00]} 2. c4 {[%emt 0:00:03]} g6 {[%emt 0:00:00]} 3. g3 {[%emt 0:00:06]} Bg7 {[%emt 0:00:00]} 4. Bg2 {[%emt 0:00:04]} O-O {[%emt 0:00:00]} 5. Nc3 {[%emt 0:00:08]} d6 {[%emt 0:00:00]} 6. Nf3 {[%emt 0:00:04]} Nbd7 {[%emt 0:00:00]} 7. O-O {[%emt 0:00:06]} e5 {[%emt 0:00:00]} 8. e4 {[%emt 0:00:12]} exd4 {[%emt 0:00:00]} 9. Nxd4 {[%emt 0:00:07]} Re8 {[%emt 0:00:00]} 10. h3 {[%emt 0:01:24]} a6 {[%emt 0:00:00]} 11. Re1 {[%emt 0:04:52]} Rb8 {[%emt 0:00:00]} 12. a4 {[%emt 0:20:08]} a5 {[%emt 0:00:00]} 13. Be3 {[%emt 0:02:23]} Nc5 {[%emt 0:00:00]} 14. Qc2 {[%emt 0:05:09]} c6 {[%emt 0:00:00]} 15. Rad1 {[%emt 0:15:04]} Qb6 {[%emt 0:00:00]} 16. Bf4 {[%emt 0:06:16]} Bf8 {[%emt 0:00:00]} 17. g4 {[%emt 0:05:11]} Nfd7 {[%emt 0:00:00]} 18. Be3 {[%emt 0:05:55]} Ne5 {[%emt 0:00:00]} 19. b3 {[%emt 0:01:48]} Bg7 {[%emt 0:00:00]} 20. Nce2 {[%emt 0:05:05]} Qc7 {[%emt 0:00:00]} 21. Rd2 {[%emt 0:05:19]} Qe7 {[%emt 0:00:00]} 22. Red1 {[%emt 0:00:52]} Bf8 {[%emt 0:00:00]} 23. Ng3 {[%emt 0:01:29]} Qc7 {[%emt 0:00:00]} 24. Kh1 {[%emt 0:07:00]} h6 {[%emt 0:00:00]} 25. f4 {[%emt 0:01:17]} Ned7 {[%emt 0:00:00]} 26. Ndf5 {[%emt 0:00:18]} gxf5 {[%emt 0:00:00]} 27. Nxf5 {[%emt 0:00:09]} Re6 {[%emt 0:00:00]} 28. g5 {[%emt 0:02:37]} hxg5 {[%emt 0:00:00]} 29. Bf3 {[%emt 0:02:18]} gxf4 {[%emt 0:01:44]} 30. Bxf4 {[%emt 0:02:35]} Ne5 {[%emt 0:00:30]} 31. Bxe5 {[%emt 0:05:44]} dxe5 {[%emt 0:01:44]} 32. Bh5 {[%emt 0:00:39]} Rf6 {[%emt 0:06:29]} 33. Rg1+ {[%emt 0:00:54]} Kh7 {[%emt 0:00:07]} 34. Rd7 {[%emt 0:01:24]} Bxd7 {[%emt 0:04:56]} 35. Qg2 {[%emt 0:00:11]} Bh6 {[%emt 0:00:27]} 36. Nxh6 {[%emt 0:00:31]} Ne6 {[%emt 0:00:05]} 37. Nf5 {[%emt 0:01:02]} Qd8 {[%emt 0:00:35]} 38. Bxf7 {[%emt 0:00:13]} Qf8 {[%emt 0:00:30]} 39. Qf2 {[%emt 0:00:18]} Rh6 {[%emt 0:00:56]} 40. Bg8+ {[%emt 0:00:53]} Qxg8 {[%emt 0:00:39]} 41. Nxh6 {[%emt 0:03:09]} Qxg1+ {[%emt 0:04:24]} 42. Kxg1 {[%emt 0:00:18]} Kxh6 {[%emt 0:00:07]} 43. Qf6+ {[%emt 0:02:58]} Kh5 {[%emt 0:02:24]} 44. Qxe5+ {[%emt 0:00:09]} Ng5 {[%emt 0:02:48]} 45. Qxb8 {[%emt 0:00:05]} Nxh3+ {[%emt 0:01:19]} 46. Kf1 {[%emt 0:01:30]} Ng5 {[%emt 0:00:06]} 47. Qxb7 {[%emt 0:01:05]} Bh3+ {[%emt 0:00:04]} 48. Ke1 {[%emt 0:00:23]} Kg4 {[%emt 0:00:19]} 49. Qxc6 {[%emt 0:00:23]} Bg2 {[%emt 0:00:23]} 50. Qc8+ {[%emt 0:00:56]} Kg3 {[%emt 0:00:17]} 51. Qg8 {[%emt 0:00:16]} Kf4 {[%emt 0:00:10]} 52. e5 {[%emt 0:00:15]} Bh3 {[%emt 0:00:24]} 53. Kd1 {[%emt 0:01:15]} Bf5 {[%emt 0:00:38]} 54. Qd8 {[%emt 0:00:38]} Nf3 {[%emt 0:00:15]} 55. Qxa5 {[%emt 0:01:38]} Nd4 {[%emt 0:00:40]} 56. Qc3 {[%emt 0:01:30]} Bg4+ {[%emt 0:00:26]} 57. Kd2 {[%emt 0:00:25]} Nf3+ {[%emt 0:00:03]} 58. Kc1 {[%emt 0:01:24]} 1-0

[Event "XTX Markets London Masters 2024"]
[Site "London"]
[Date "2024.11.29"]
[Round "1.39"]
[White "Dong, Bao Nghia"]
[Black "Zhang, Kendrick Botong"]
[Result "1-0"]
[ECO "B85"]
[WhiteElo "2247"]
[BlackElo "2011"]
[Annotator "RC"]
[PlyCount "85"]
[EventDate "2024.11.28"]
[EventType "swiss"]
[EventCountry "ENG"]
[SourceTitle "playchess.com"]
[Source "ChessBase"]
[SourceQuality "1"]
[TimeControl "40/5400+30:1800+30"]

1. e4 {[%emt 0:06:37]} c5 {[%emt 0:00:06]} 2. Nf3 {[%emt 0:00:05]} e6 {[%emt 0:00:04]} 3. d4 {[%emt 0:00:05]} cxd4 {[%emt 0:00:06]} 4. Nxd4 {[%emt 0:00:04]} Nc6 {[%emt 0:00:05]} 5. Nc3 {[%emt 0:00:08]} Qc7 {[%emt 0:00:07]} 6. Be2 {[%emt 0:00:03]} a6 {[%emt 0:00:06]} 7. O-O {[%emt 0:00:06]} Nf6 {[%emt 0:00:04]} 8. Be3 {[%emt 0:00:18]} Be7 {[%emt 0:00:14]} 9. f4 {[%emt 0:00:08]} d6 {[%emt 0:00:05]} 10. Qe1 {[%emt 0:00:12]} O-O {[%emt 0:00:28]} 11. Qg3 {[%emt 0:00:09]} Nd7 {[%emt 0:08:12]} 12. f5 {[%emt 0:04:17]} Nxd4 {[%emt 0:03:41]} 13. Bxd4 {[%emt 0:00:08]} Bf6 {[%emt 0:00:14]} 14. Rad1 {[%emt 0:01:09]} Ne5 {[%emt 0:04:36]} 15. a4 {[%emt 0:06:54]} Qe7 {[%emt 0:10:42]} 16. a5 {[%emt 0:02:11]} Bd7 {[%emt 0:04:49]} 17. Rf2 {[%emt 0:05:19]} Bc6 {[%emt 0:08:23]} 18. Qh3 {[%emt 0:01:45]} Nd7 {[%emt 0:20:49]} 19. Bc4 {[%emt 0:01:00]} Rfe8 {[%emt 0:06:21]} 20. fxe6 {[%emt 0:02:14]} fxe6 {[%emt 0:00:53]} 21. Rfd2 {[%emt 0:00:05]} Bxd4+ {[%emt 0:08:18]} 22. Rxd4 {[%emt 0:00:11]} Ne5 {[%emt 0:00:07]} 23. Bb3 {[%emt 0:01:00]} Rad8 {[%emt 0:02:09]} 24. Ne2 {[%emt 0:00:15]} Nf7 {[%emt 0:05:23]} 25. Ng3 {[%emt 0:02:01]} d5 {[%emt 0:04:34]} 26. Nh5 {[%emt 0:07:23]} Ng5 {[%emt 0:03:13]} 27. Qg4 {[%emt 0:04:54]} Nxe4 {[%emt 0:00:41]} 28. c4 {[%emt 0:03:51]} Nf6 {[%emt 0:01:26]} 29. Nxf6+ {[%emt 0:00:04]} Qxf6 {[%emt 0:00:05]} 30. Rf1 {[%emt 0:00:06]} Qe7 {[%emt 0:03:21]} 31. Bc2 {[%emt 0:00:09]} Rf8 {[%emt 0:01:43]} 32. Rxf8+ {[%emt 0:04:16]} Rxf8 {[%emt 0:00:09]} 33. Qh5 {[%emt 0:00:45]} h6 {[%emt 0:03:18]} 34. Qg6 {[%emt 0:01:07]} Qf6 {[%emt 0:01:16]} 35. Qh7+ {[%emt 0:02:34]} Kf7 {[%emt 0:00:04]} 36. Rg4 {[%emt 0:00:11]} Ke8 {[%emt 0:01:22]} 37. h3 {[%emt 0:00:07]} Qxb2 {[%emt 0:01:13]} 38. Rxg7 {[%emt 0:00:25]} Qd4+ {[%emt 0:00:22]} 39. Kh2 {[%emt 0:00:09]} Qxc4 {[%emt 0:00:36]} 40. Rg4 {[%emt 0:02:26]} Qc5 {[%emt 0:00:32]} 41. Qc7 {[%emt 0:31:15]} Qf2 {[%emt 0:16:27]} 42. Bg6+ {[%emt 0:00:00]} Rf7 {[%emt 0:00:03]} 43. Rf4 {[%emt 0:00:00]} 1-0

[Event "XTX Markets London Masters 2024"]
[Site "London"]
[Date "2024.11.29"]
[Round "1.40"]
[White "Bird, Joel"]
[Black "Carlin, John D"]
[Result "1/2-1/2"]
[ECO "B90"]
[WhiteElo "2001"]
[BlackElo "2235"]
[Annotator "RC"]
[PlyCount "78"]
[EventDate "2024.11.28"]
[EventType "swiss"]
[EventCountry "ENG"]
[SourceTitle "playchess.com"]
[Source "ChessBase"]
[SourceQuality "1"]
[TimeControl "40/5400+30:1800+30"]

1. e4 {[%emt 0:00:05]} c5 {[%emt 0:00:43]} 2. Nf3 {[%emt 0:00:01]} d6 {[%emt 0:00:20]} 3. d4 {[%emt 0:00:26]} cxd4 {[%emt 0:00:29]} 4. Nxd4 {[%emt 0:00:06]} Nf6 {[%emt 0:00:06]} 5. Nc3 {[%emt 0:00:06]} a6 {[%emt 0:00:14]} 6. f3 {[%emt 0:00:18]} e5 {[%emt 0:00:27]} 7. Nb3 {[%emt 0:00:07]} Be6 {[%emt 0:00:29]} 8. Be3 {[%emt 0:00:27]} Nbd7 {[%emt 0:00:24]} 9. Qd2 {[%emt 0:00:16]} b5 {[%emt 0:01:01]} 10. g4 {[%emt 0:04:42]} Nb6 {[%emt 0:00:50]} 11. g5 {[%emt 0:03:00]} Nh5 {[%emt 0:12:20]} 12. Nd5 {[%emt 0:09:55]} Bxd5 {[%emt 0:20:39]} 13. exd5 {[%emt 0:00:13]} Rc8 {[%emt 0:00:30]} 14. Na5 {[%emt 0:15:00]} Nxd5 {[%emt 0:13:39]} 15. Nb7 {[%emt 0:00:29]} Nxe3 {[%emt 0:00:07]} 16. Nxd8 {[%emt 0:02:58]} Nxc2+ {[%emt 0:00:09]} 17. Kf2 {[%emt 0:12:47]} Nxa1 {[%emt 0:00:38]} 18. Bd3 {[%emt 0:00:57]} Rxd8 {[%emt 0:01:38]} 19. Rxa1 {[%emt 0:01:07]} Nf4 {[%emt 0:03:44]} 20. a4 {[%emt 0:03:30]} bxa4 {[%emt 0:01:04]} 21. Bxa6 {[%emt 0:07:30]} Be7 {[%emt 0:00:19]} 22. Rxa4 {[%emt 0:02:37]} Bxg5 {[%emt 0:01:06]} 23. Bb5+ {[%emt 0:02:13]} Kf8 {[%emt 0:00:29]} 24. Qc2 {[%emt 0:07:56]} g6 {[%emt 0:04:11]} 25. Bc6 {[%emt 0:03:38]} Kg7 {[%emt 0:01:31]} 26. Qe4 {[%emt 0:02:46]} Kh6 {[%emt 0:08:07]} 27. Ra5 {[%emt 0:03:46]} Rb8 {[%emt 0:12:25]} 28. Rb5 {[%emt 0:04:27]} d5 {[%emt 0:00:10]} 29. Qa4 {[%emt 0:07:48]} Rbc8 {[%emt 0:07:53]} 30. Rb7 {[%emt 0:01:13]} f6 {[%emt 0:00:25]} 31. b4 {[%emt 0:00:38]} Rhd8 {[%emt 0:00:24]} 32. b5 {[%emt 0:01:32]} d4 {[%emt 0:02:24]} 33. Qa7 {[%emt 0:00:08]} Bh4+ {[%emt 0:00:22]} 34. Kf1 {[%emt 0:00:27]} Rh8 {[%emt 0:04:02]} 35. Rd7 {[%emt 0:01:37]} f5 {[%emt 0:00:53]} 36. Qc5 {[%emt 0:00:46]} Nd3 {[%emt 0:02:40]} 37. Qc4 {[%emt 0:00:05]} Nf4 {[%emt 0:00:13]} 38. Qc5 {[%emt 0:00:58]} Nd3 {[%emt 0:00:48]} 39. Qc4 {[%emt 0:01:02]} Nf4 {[%emt 0:00:04]} 1/2-1/2